bitfinex/quotes_SOLUSD_20230116
["timestamp","ask_amount","ask_price","bid_price","bid_amount"]
[1673828482886,20.0,22.505,22.471,30.37]
[1673828483093,25.06383,22.505,22.463,30.07]
[1673828483306,22.21,22.49,22.464,5.13642]
[1673828483499,22.24,22.49,22.462,20.0]
[1673828483708,33.37,22.489,22.462,25.13688]
[1673828483926,33.35,22.499,22.463,30.51]
[1673828484143,33.34,22.503,22.463,30.51]
[1673828484452,22.22,22.5,22.463,30.51]
[1673828484662,33.35,22.499,22.463,30.51]
[1673828484874,20.0,22.498,22.462,32.01]
[1673828485077,33.35,22.497,22.463,5.13665]
[1673828485282,33.35,22.497,22.464,31.77]
[1673828485711,33.35,22.497,22.457,20.0]
[1673828485712,33.35,22.497,22.462,33.22]
[1673828485931,20.0,22.496,22.458,33.22]
[1673828486254,22.13,22.49,22.458,33.22]
[1673828486464,33.37,22.489,22.452,32.9]
[1673828486857,20.0,22.488,22.453,20.0]
[1673828487090,20.0,22.488,22.454,32.01]
[1673828487409,33.36,22.494,22.454,32.01]
[1673828487595,33.36,22.494,22.455,5.13848]
[1673828487803,38.77137716,22.493,22.457,20.0]
[1673828488018,33.36,22.492,22.457,20.0]
[1673828488229,33.36,22.492,22.458,50.88]
[1673828488445,22.24,22.49,22.457,20.0]
[1673828488649,22.13,22.48,22.454,36.16735982]
[1673828488867,22.13,22.48,22.451,20.0]
[1673828489083,33.38,22.479,22.451,20.0]
[1673828489287,33.38,22.479,22.452,29.91]
[1673828489494,33.37,22.487,22.451,20.0]
[1673828489824,20.0,22.486,22.453,20.0]
[1673828490038,33.37,22.485,22.454,31.88]
[1673828490659,22.1,22.52,22.471,20.0]
[1673828490888,111.2449,22.516,22.48,22.15]
[1673828491070,118.2833,22.528,22.48,22.15]
[1673828491071,118.2833,22.528,22.481,33.38]
[1673828491278,118.2833,22.528,22.482,25.13231]
[1673828491498,77.15,22.527,22.49,22.09]
[1673828491697,118.2833,22.528,22.492,20.0]
[1673828491900,33.3,22.534,22.5,22.12]
[1673828492111,33.3,22.534,22.501,33.35]
[1673828492328,33.28,22.549,22.51,22.24]
[1673828492539,33.28,22.549,22.511,33.33]
[1673828492747,43.84,22.556,22.513,20.0]
[1673828492970,33.27,22.555,22.514,38.45501]
[1673828493189,20.0,22.554,22.515,45.12478]
[1673828493416,33.27,22.553,22.52,22.17]
[1673828493611,33.27,22.555,22.521,53.32]
[1673828493796,20.0,22.554,22.522,20.0]
[1673828494121,38.33383,22.553,22.516,33.33]
[1673828494335,33.27,22.553,22.522,21.46196354]
[1673828494664,20.0,22.552,22.523,20.0]
[1673828494848,33.27,22.551,22.516,33.33]
[1673828495068,22.21,22.55,22.513,20.0]
[1673828495390,33.28,22.549,22.513,20.0]
[1673828495722,20.0,22.548,22.515,20.0]
[1673828495920,20.0,22.548,22.52,22.15]
[1673828496120,33.28,22.547,22.521,33.32]
[1673828496436,33.27,22.556,22.53,22.11]
[1673828496655,43.84,22.567,22.541,20.0]
[1673828496842,43.84,22.576,22.542,70.29]
[1673828497205,43.84,22.576,22.55,22.24]
[1673828497369,172.46099636,22.582,22.551,50.27]
[1673828497585,172.46099636,22.582,22.56,22.24]
[1673828497791,172.46099636,22.582,22.561,95.37433]
[1673828498001,0.00099636,22.582,22.57,22.12]
[1673828498223,33.2,22.603,22.571,70.24]
[1673828498540,33.18,22.615,22.58,22.2]
[1673828498756,115.2932,22.626,22.581,90.23]
[1673828498757,33.16,22.625,22.581,90.23]
[1673828499283,33.16,22.625,22.582,21.46196354]
[1673828499473,33.16,22.626,22.583,70.23]
[1673828499678,33.16,22.626,22.584,20.0]
[1673828499898,33.15,22.637,22.59,111.09]
[1673828500109,43.84,22.646,22.62,22.24]
[1673828500329,33.11,22.663,22.63,22.2]
[1673828500526,33.1,22.669,22.631,17.0]
[1673828500743,20.0,22.668,22.632,20.0]
[1673828500971,33.1,22.667,22.631,5.09852]
[1673828501187,33.1,22.667,22.62,22.24]
[1673828501401,33.1,22.667,22.621,46.785]
[1673828501605,20.0,22.666,22.622,20.0]
[1673828501813,22.02,22.66,22.623,20.0]
[1673828502034,22.02,22.66,22.61,22.2]
[1673828502035,33.11,22.659,22.611,8.462]
[1673828502249,22.24,22.65,22.612,20.0]
[1673828502564,20.0,22.648,22.613,20.0]
[1673828502768,22.24,22.64,22.614,20.0]
[1673828502972,22.13,22.63,22.587,5.398]
[1673828503294,22.24,22.62,22.583,5.399]
[1673828503496,50.17,22.619,22.587,20.0]
[1673828503707,20.0,22.618,22.587,20.0]
[1673828503925,33.18,22.617,22.587,20.0]
[1673828504121,53.16,22.628,22.592,46.56928354]
[1673828504327,36.5,22.627,22.592,46.56928354]
[1673828504537,20.0,22.625,22.594,20.0]
[1673828504766,50.17,22.624,22.594,20.0]
[1673828504970,50.17,22.624,22.595,5.10664]
[1673828505397,33.14,22.639,22.6,22.24]
[1673828505604,20.0,22.646,22.611,20.0]
[1673828505922,33.14,22.645,22.611,20.0]
[1673828506134,33.14,22.645,22.612,21.46196354]
[1673828506451,33.14,22.645,22.613,37.0]
[1673828506760,53.12,22.656,22.62,22.12]
[1673828506986,33.12,22.656,22.621,37.0]
[1673828507283,118.2574,22.66,22.621,37.0]
[1673828507284,33.11,22.659,22.621,63.56273354]
[1673828507473,33.11,22.659,22.623,20.0]
[1673828507688,62.85663739,22.668,22.624,37.0]
[1673828507913,62.85663739,22.668,22.63,22.12]
[1673828508107,84.31860093,22.668,22.631,17.0]
[1673828508319,21.46196354,22.667,22.63,22.12]
[1673828508640,20.0,22.665,22.632,20.0]
[1673828508851,33.11,22.664,22.631,5.09852]
[1673828509178,84.32860093,22.664,22.624,20.0]
[1673828509500,41.46196354,22.663,22.625,20.0]
[1673828509688,53.11,22.662,22.625,20.0]
[1673828509893,33.11,22.662,22.63,22.17]
[1673828510102,33.1,22.668,22.631,37.0]
[1673828510321,31.1,22.668,22.64,22.17]
[1673828510525,21.46196354,22.675,22.642,20.0]
[1673828510755,33.09,22.674,22.642,20.0]
[1673828511386,33.09,22.674,22.641,5.09626]
[1673828511387,22.02,22.67,22.641,5.09626]
[1673828511607,53.1,22.669,22.637,21.46196354]
[1673828511796,53.1,22.669,22.638,17.0]
[1673828512131,53.1,22.669,22.639,5.09671]
[1673828512342,53.1,22.669,22.64,17.0]
[1673828512655,53.1,22.669,22.641,25.09626]
[1673828512975,53.1,22.669,22.643,20.0]
[1673828513170,53.1,22.669,22.644,20.0]
[1673828513171,20.0,22.669,22.644,20.0]
[1673828513368,33.09,22.677,22.645,21.32]
[1673828513581,33.09,22.677,22.65,22.13]
[1673828513788,53.09,22.678,22.651,37.0]
[1673828514019,53.09,22.678,22.651,42.09401]
[1673828514209,53.09,22.678,22.652,5.09379]
[1673828514840,22.13,22.67,22.633,5.63]
[1673828515067,50.1,22.669,22.626,5.632]
[1673828515269,92.07305584,22.669,22.634,5.09784]
[1673828515488,20.0,22.668,22.634,5.09784]
[1673828515691,50.1,22.667,22.634,5.09784]
[1673828515909,33.1,22.667,22.634,5.09784]
[1673828516099,33.09,22.677,22.64,22.13]
[1673828516309,31.58530406,22.671,22.641,29.183]
[1673828516630,75.23,22.67,22.634,5.09784]
[1673828516835,20.0,22.669,22.641,5.09626]
[1673828517044,33.1,22.668,22.641,5.09626]
[1673828517270,33.1,22.668,22.626,9.009]
[1673828517476,20.0,22.666,22.627,5.09942]
[1673828517686,50.11,22.665,22.627,26.56138354]
[1673828517897,33.11,22.665,22.63,22.11]
[1673828518107,33.1,22.668,22.631,15.25852]
[1673828518322,33.1,22.668,22.64,21.97]
[1673828518515,33.09,22.677,22.641,55.99626]
[1673828518732,33.09,22.677,22.642,5.09604]
[1673828518940,33.09,22.677,22.643,48.68]
[1673828519142,20.0,22.676,22.644,20.0]
[1673828519358,20.0,22.674,22.646,20.0]
[1673828519564,33.09,22.673,22.647,22.09491]
[1673828519780,20.0,22.674,22.647,22.09491]
[1673828519989,33.09,22.673,22.648,5.09469]
[1673828520207,33.09,22.673,22.649,17.0]
[1673828520415,33.09,22.675,22.65,20.0]
[1673828520622,33.09,22.677,22.651,5.09401]
[1673828521267,20.0,22.676,22.651,5.09401]
[1673828521480,33.09,22.675,22.652,17.0]
[1673828521683,33.08,22.684,22.653,32.31]
[1673828521904,33.08,22.684,22.654,17.0]
[1673828522094,33.08,22.684,22.655,20.0]
[1673828522422,33.08,22.684,22.657,20.0]
[1673828522635,33.08,22.684,22.658,17.0]
[1673828522847,20.0,22.689,22.659,20.0]
[1673828522848,33.07,22.688,22.659,20.0]
[1673828523168,33.07,22.688,22.66,22.09199]
[1673828523369,20.0,22.687,22.662,20.0]
[1673828523696,33.07,22.688,22.663,37.0]
[1673828523910,33.07,22.688,22.663,42.09132]
[1673828524214,33.07,22.691,22.664,5.09109]
[1673828524399,20.0,22.69,22.664,5.09109]
[1673828524611,33.07,22.689,22.664,5.09109]
[1673828524840,33.07,22.689,22.665,20.0]
[1673828525243,33.07,22.689,22.665,25.09087]
[1673828525454,33.07,22.689,22.666,25.09064]
[1673828525670,33.07,22.691,22.667,20.0]
[1673828525882,33.07,22.691,22.668,17.0]
[1673828526100,32.56,22.696,22.668,56.32215354]
[1673828526306,20.0,22.702,22.67,20.0]
[1673828526535,33.05,22.701,22.671,17.0]
[1673828526719,33.05,22.701,22.672,20.0]
[1673828526936,64.63530406,22.701,22.672,25.0893]
[1673828527146,64.63530406,22.701,22.67,20.0]
[1673828527147,33.05,22.701,22.673,5.08907]
[1673828527480,41.46196354,22.7,22.673,5.08907]
[1673828527676,30.56,22.699,22.673,5.08907]
[1673828528088,20.0,22.698,22.673,5.08907]
[1673828528298,33.06,22.697,22.673,5.08907]
[1673828528736,33.06,22.697,22.674,20.0]
[1673828528937,33.06,22.697,22.675,20.0]
[1673828529251,20.0,22.698,22.677,20.0]
[1673828529475,33.06,22.699,22.677,20.0]
[1673828529685,33.06,22.699,22.678,25.08795]
[1673828530208,33.06,22.699,22.678,5.08795]
[1673828530209,20.0,22.697,22.678,5.08795]
[1673828530425,33.06,22.696,22.678,5.08795]
[1673828530633,33.06,22.696,22.659,20.0]
[1673828530946,33.06,22.696,22.665,26.55283354]
[1673828531162,17.0,22.695,22.665,26.55283354]
[1673828531343,20.0,22.694,22.666,46.55260354]
[1673828531558,53.06,22.694,22.667,5.09042]
[1673828531770,53.06,22.694,22.667,26.55238354]
[1673828531974,53.06,22.694,22.667,5.09042]
[1673828532294,20.0,22.693,22.667,5.09042]
[1673828532505,22.13,22.68,22.651,20.0]
[1673828532710,53.09,22.679,22.64,21.97]
[1673828532928,53.09,22.679,22.647,5.09491]
[1673828533154,28.07421176,22.678,22.647,5.09491]
[1673828533350,22.13,22.67,22.626,9.18]
[1673828533559,33.1,22.669,22.626,5.09964]
[1673828533782,22.13,22.66,22.627,5.09942]
[1673828533968,53.11,22.659,22.627,5.09942]
[1673828534186,22.13,22.65,22.621,20.0]
[1673828534396,22.13,22.65,22.6,22.27]
[1673828534397,50.13,22.649,22.601,8.241]
[1673828534718,22.13,22.64,22.602,5.10506]
[1673828534924,70.14,22.639,22.602,5.10506]
[1673828535129,70.14,22.639,22.602,26.56702354]
[1673828535344,20.0,22.638,22.602,5.10506]
[1673828535563,22.13,22.63,22.602,5.10506]
[1673828535879,70.16,22.629,22.586,9.824]
[1673828536202,20.0,22.628,22.593,20.0]
[1673828536402,50.16,22.627,22.587,5.10845]
[1673828536728,22.13,22.62,22.587,5.10845]
[1673828536919,50.17,22.619,22.587,5.10845]
[1673828537126,20.0,22.618,22.587,2.60845]
[1673828537343,50.18,22.617,22.572,20.0]
[1673828537556,60.56775178,22.617,22.573,5.11162]
[1673828537768,11.07421176,22.616,22.573,5.11162]
[1673828537976,20.0,22.614,22.574,20.0]
[1673828538298,33.18,22.613,22.58,22.08]
[1673828538515,17.0,22.613,22.58,5.11003]
[1673828538822,33.18,22.612,22.58,5.11003]
[1673828539047,20.0,22.61,22.58,5.11003]
[1673828539230,53.19,22.609,22.58,5.11003]
[1673828539444,22.13,22.6,22.58,5.11003]
[1673828539651,22.13,22.59,22.555,43.84]
[1673828539861,5.11003,22.579,22.52,22.18]
[1673828540072,33.23,22.578,22.521,5.12342]
[1673828540281,57.0,22.577,22.522,20.0]
[1673828540506,22.13,22.57,22.53,22.13]
[1673828540703,33.24,22.576,22.54,21.97]
[1673828540908,33.23,22.583,22.55,22.08]
[1673828541119,33.21,22.593,22.561,20.0]
[1673828541330,33.2,22.599,22.562,15.05011]
[1673828541660,33.2,22.599,22.563,5.11388]
[1673828541862,33.2,22.599,22.563,26.57584354]
[1673828542078,20.0,22.603,22.565,20.0]
[1673828542272,33.2,22.602,22.566,53.6732]
[1673828542487,33.2,22.602,22.567,5.11297]
[1673828542714,20.0,22.601,22.569,20.0]
[1673828542926,33.2,22.6,22.57,42.1123]
[1673828543111,20.0,22.599,22.571,20.0]
[1673828543328,33.2,22.602,22.572,42.11184]
[1673828543537,33.19,22.609,22.573,16.77162]
[1673828543848,33.19,22.609,22.574,42.11139]
[1673828544179,33.18,22.615,22.58,20.13]
[1673828544388,33.18,22.617,22.581,54.7698]
[1673828544598,33.18,22.617,22.582,5.10958]
[1673828544808,33.16,22.625,22.583,49.78]
[1673828545012,33.16,22.625,22.584,5.10913]
[1673828545220,20.0,22.624,22.59,22.09]
[1673828545550,33.17,22.623,22.591,35.89754]
[1673828545762,33.17,22.623,22.592,25.10732]
[1673828545953,33.17,22.623,22.593,35.83709]
[1673828546159,20.0,22.624,22.595,20.0]
[1673828546369,33.17,22.623,22.596,25.10641]
[1673828546694,33.17,22.623,22.597,5.10619]
[1673828546902,20.0,22.631,22.598,20.0]
[1673828546903,20.0,22.629,22.598,20.0]
[1673828547109,33.16,22.628,22.598,20.0]
[1673828547334,33.16,22.628,22.598,41.46196354]
[1673828547657,33.16,22.628,22.599,21.46196354]
[1673828547860,33.15,22.637,22.6,44.23551]
[1673828548056,33.15,22.637,22.602,20.0]
[1673828548268,33.14,22.639,22.603,55.24483]
[1673828548480,33.14,22.642,22.604,5.10461]
[1673828548682,33.13,22.647,22.605,32.96]
[1673828548895,33.13,22.647,22.606,22.10415]
[1673828549116,30.38775178,22.646,22.608,20.0]
[1673828549326,33.14,22.645,22.609,37.0]
[1673828549760,33.14,22.645,22.61,27.21325]
[1673828549971,33.14,22.645,22.611,33.84303]
[1673828550290,33.14,22.645,22.612,45.1028]
[1673828550502,33.14,22.645,22.613,22.10257]
[1673828550704,33.14,22.645,22.615,20.0]
[1673828550911,22.13,22.64,22.613,21.46196354]
[1673828551124,20.0,22.638,22.599,11.15]
[1673828551317,22.13,22.63,22.603,21.46196354]
[1673828551529,22.13,22.63,22.591,20.0]
[1673828551530,53.16,22.629,22.591,20.0]
[1673828551739,63.54775178,22.629,22.595,41.46196354]
[1673828551976,53.16,22.629,22.599,21.46196354]
[1673828552166,37.0,22.628,22.599,21.46196354]
[1673828552375,20.0,22.626,22.595,20.0]
[1673828552591,50.16,22.625,22.596,21.46196354]
[1673828552807,50.16,22.625,22.595,20.0]
[1673828553001,20.0,22.624,22.595,20.0]
[1673828553216,50.17,22.623,22.595,20.0]
[1673828553435,50.17,22.623,22.591,20.0]
[1673828553855,50.17,22.623,22.592,26.56928354]
[1673828554056,50.17,22.623,22.593,20.0]
[1673828554259,33.17,22.623,22.594,5.10686]
[1673828554487,33.16,22.627,22.594,26.56882354]
[1673828554808,33.16,22.627,22.595,58.46196354]
[1673828555120,20.0,22.626,22.597,20.0]
[1673828555310,33.15,22.637,22.6,22.11]
[1673828555530,33.15,22.637,22.61,22.13]
[1673828555846,33.15,22.638,22.611,25.10303]
[1673828556060,20.0,22.644,22.612,20.0]
[1673828556263,20.0,22.642,22.612,41.46196354]
[1673828556472,33.14,22.641,22.613,41.46196354]
[1673828556693,33.14,22.641,22.614,22.10235]
[1673828556907,33.14,22.641,22.615,20.0]
[1673828557100,33.14,22.641,22.616,22.1019]
[1673828557311,33.14,22.641,22.618,20.0]
[1673828557742,33.14,22.641,22.619,20.0]
[1673828558063,33.14,22.641,22.62,64.18099]
[1673828558273,33.13,22.648,22.621,25.10077]
[1673828558469,33.13,22.651,22.622,22.10054]
[1673828558681,33.13,22.651,22.623,5.10032]
[1673828558890,20.0,22.65,22.62,20.0]
[1673828559105,50.58439073,22.658,22.622,21.46196354]
[1673828559106,33.13,22.649,22.622,21.46196354]
[1673828559304,20.0,22.658,22.623,22.10032]
[1673828559305,33.13,22.651,22.623,22.10032]
[1673828559515,33.13,22.651,22.624,5.10009]
[1673828559949,20.0,22.65,22.62,42.09]
[1673828560161,33.13,22.649,22.621,22.10077]
[1673828560480,20.0,22.648,22.623,20.0]
[1673828560691,33.13,22.647,22.624,20.0]
[1673828561026,33.13,22.647,22.626,20.0]
[1673828561215,20.0,22.658,22.626,20.0]
[1673828561216,33.12,22.657,22.627,42.09942]
[1673828561617,33.1,22.669,22.63,22.09]
[1673828561828,33.1,22.669,22.631,42.09852]
[1673828562038,22.04,22.68,22.64,22.08]
[1673828562039,30.58439073,22.672,22.64,22.08]
[1673828562262,33.1,22.671,22.641,20.0]
[1673828562575,33.1,22.671,22.642,28.07704]
[1673828562800,20.0,22.676,22.644,20.0]
[1673828563000,33.09,22.675,22.65,22.08]
[1673828563214,33.07,22.689,22.651,25.79]
[1673828563527,33.07,22.692,22.651,64.25196354]
[1673828563739,33.07,22.692,22.652,21.46196354]
[1673828563950,33.07,22.692,22.654,20.0]
[1673828563951,22.13,22.69,22.654,20.0]
[1673828564143,33.07,22.689,22.655,42.09311]
[1673828564354,53.07,22.689,22.655,63.55507354]
[1673828564680,53.07,22.689,22.656,21.46196354]
[1673828564899,53.07,22.689,22.658,20.0]
[1673828565088,53.07,22.689,22.659,22.09222]
[1673828565411,20.0,22.688,22.661,20.0]
[1673828565626,20.0,22.688,22.66,26.55395354]
[1673828565627,33.07,22.687,22.66,26.55395354]
[1673828565829,20.0,22.686,22.662,21.46196354]
[1673828566036,33.08,22.685,22.662,21.46196354]
[1673828566450,33.08,22.685,22.66,5.09199]
[1673828566769,33.07,22.692,22.661,41.46196354]
[1673828566975,53.06,22.698,22.662,45.10354]
[1673828567185,33.06,22.698,22.663,25.09132]
[1673828567394,33.05,22.703,22.664,25.57909]
[1673828567607,33.05,22.703,22.665,5.09087]
[1673828567809,20.0,22.701,22.667,20.0]
[1673828568019,33.05,22.7,22.668,25.09019]
[1673828568259,55.18,22.7,22.668,25.09019]
[1673828568450,30.58439073,22.699,22.668,25.09019]
[1673828568666,33.06,22.698,22.669,21.46196354]
[1673828568991,20.0,22.699,22.67,71.44606198]
[1673828569183,33.06,22.698,22.67,51.44606198]
[1673828569393,33.06,22.698,22.67,5.08974]
[1673828569626,20.0,22.697,22.671,21.46196354]
[1673828569937,20.0,22.695,22.671,21.46196354]
[1673828570146,17.0,22.694,22.672,5.0893]
[1673828570462,50.06,22.694,22.673,21.46196354]
[1673828570651,20.0,22.695,22.674,20.0]
[1673828570977,20.0,22.695,22.675,21.46196354]
[1673828571186,33.06,22.696,22.676,40.0]
[1673828571509,33.05,22.702,22.676,5.0884]
[1673828571722,20.0,22.701,22.671,21.46196354]
[1673828571915,53.05,22.7,22.672,20.0]
[1673828572131,20.0,22.699,22.672,20.0]
[1673828572342,33.06,22.698,22.673,21.46196354]
[1673828572547,20.0,22.697,22.673,26.55103354]
[1673828572766,33.06,22.696,22.673,26.55103354]
[1673828573089,33.06,22.696,22.673,5.08907]
[1673828573282,37.0,22.695,22.673,5.08907]
[1673828573488,33.06,22.694,22.673,5.08907]
[1673828573703,33.06,22.694,22.661,20.0]
[1673828573704,17.0,22.693,22.661,20.0]
[1673828573909,33.07,22.692,22.663,25.09132]
[1673828574226,33.06,22.694,22.666,21.46196354]
[1673828574431,20.0,22.695,22.668,20.0]
[1673828574755,33.06,22.694,22.669,26.55193354]
[1673828574963,33.06,22.698,22.67,27.16974]
[1673828575178,33.05,22.705,22.671,25.08952]
[1673828575504,33.05,22.705,22.672,22.0893]
[1673828575715,33.04,22.707,22.673,25.08907]
[1673828576053,33.04,22.707,22.674,43.22585]
[1673828576245,20.0,22.706,22.676,20.0]
[1673828576439,33.05,22.705,22.677,5.08817]
[1673828576654,33.05,22.705,22.678,37.0]
[1673828576861,33.04,22.708,22.679,25.08772]
[1673828577057,33.04,22.708,22.68,44.1975]
[1673828577271,33.04,22.713,22.681,25.08728]
[1673828577488,33.04,22.713,22.682,17.0]
[1673828577704,33.03,22.714,22.684,20.0]
[1673828577908,33.03,22.714,22.685,25.08638]
[1673828578110,33.02,22.725,22.69,22.11]
[1673828578334,33.02,22.725,22.691,42.08503]
[1673828578545,33.02,22.725,22.692,5.08481]
[1673828578738,33.02,22.725,22.693,20.0]
[1673828579079,20.0,22.724,22.694,22.08436]
[1673828579269,33.02,22.723,22.695,25.08414]
[1673828579474,33.01,22.733,22.696,22.08391]
[1673828579688,33.01,22.733,22.697,25.08369]
[1673828579916,20.0,22.732,22.698,20.0]
[1673828580240,33.01,22.731,22.699,20.0]
[1673828580451,33.01,22.731,22.7,44.21302]
[1673828580667,20.0,22.73,22.702,20.0]
[1673828580865,33.01,22.729,22.703,22.08235]
[1673828581081,33.01,22.734,22.71,22.08]
[1673828581398,90.5667254,22.735,22.711,22.08056]
[1673828581723,90.5667254,22.735,22.713,20.0]
[1673828582033,20.0,22.733,22.712,5.08033]
[1673828582434,33.01,22.732,22.712,5.08033]
[1673828582645,20.0,22.731,22.712,5.08033]
[1673828582870,13.56037478,22.711,22.685,1.476]
[1673828583088,33.04,22.71,22.68,23.587]
[1673828583275,20.0,22.709,22.68,1.477]
[1673828583493,33.04,22.708,22.676,20.0]
[1673828583814,54.50196354,22.708,22.67,22.08]
[1673828584020,37.0,22.707,22.675,5.08862]
[1673828584233,33.05,22.706,22.675,5.08862]
[1673828584442,17.0,22.705,22.675,5.08862]
[1673828584768,20.0,22.703,22.675,5.08862]
[1673828585074,20.0,22.701,22.675,5.08862]
[1673828585392,20.0,22.701,22.662,20.0]
[1673828585393,92.09,22.7,22.662,20.0]
[1673828585604,20.0,22.699,22.663,5.09132]
[1673828585795,50.06,22.698,22.663,26.55328354]
[1673828586010,50.06,22.698,22.664,21.46196354]
[1673828586222,33.06,22.698,22.665,5.09087]
[1673828586650,33.06,22.698,22.667,20.0]
[1673828586970,33.06,22.698,22.67,22.13]
[1673828587297,33.05,22.706,22.671,30.14448354]
[1673828587494,33.04,22.708,22.672,5.0893]
[1673828587708,33.04,22.708,22.681,20.0]
[1673828588025,22.13,22.74,22.69,22.08]
[1673828588252,22.13,22.74,22.7,22.09]
[1673828588418,22.13,22.74,22.701,20.0]
[1673828588629,20.0,22.729,22.692,20.0]
[1673828588844,33.01,22.728,22.693,20.0]
[1673828589064,33.01,22.728,22.693,25.08459]
[1673828589479,20.0,22.727,22.694,20.0]
[1673828589694,33.02,22.726,22.695,20.0]
[1673828590013,33.02,22.726,22.696,5.08391]
[1673828590223,33.02,22.726,22.697,20.0]
[1673828590423,33.02,22.726,22.698,22.08347]
[1673828590636,0.00037478,22.711,22.701,20.0]
[1673828590854,0.00037478,22.711,22.702,31.47857]
[1673828591091,53.01,22.733,22.704,20.0]
[1673828591308,32.99,22.745,22.71,22.13]
[1673828591512,32.99,22.745,22.705,52.5819]
[1673828591513,32.99,22.745,22.72,21.97]
[1673828591723,52.99,22.747,22.721,25.07832]
[1673828591933,52.99,22.747,22.721,5.07832]
[1673828592265,52.99,22.747,22.706,13.02]
[1673828592441,33.01,22.734,22.707,20.0]
[1673828592654,20.0,22.733,22.706,20.0]
[1673828592865,17.0,22.732,22.707,25.08145]
[1673828593085,33.01,22.732,22.708,5.08123]
[1673828593301,33.01,22.734,22.709,20.0]
[1673828593510,20.0,22.747,22.711,20.0]
[1673828593511,20.0,22.745,22.711,20.0]
[1673828593723,32.99,22.744,22.72,22.11]
[1673828593937,20.0,22.743,22.721,25.07832]
[1673828594122,20.0,22.743,22.721,46.54028354]
[1673828594338,20.0,22.743,22.721,26.54028354]
[1673828594543,32.99,22.742,22.721,5.07832]
[1673828594987,32.99,22.744,22.721,26.54028354]
[1673828595192,32.99,22.744,22.722,25.0781]
[1673828595403,20.0,22.757,22.723,22.07787]
[1673828595404,32.97,22.756,22.723,22.07787]
[1673828595595,20.0,22.755,22.724,25.07765]
[1673828595813,32.98,22.754,22.725,5.07743]
[1673828596029,32.98,22.754,22.715,21.46196354]
[1673828596030,20.0,22.753,22.715,21.46196354]
[1673828596236,32.98,22.752,22.716,5.07944]
[1673828596441,22.13,22.75,22.716,5.07944]
[1673828596659,53.01,22.734,22.716,5.07944]